bitfinex/quotes_BTCUSD_20241216
["timestamp","ask_amount","ask_price","bid_price","bid_amount"]
[1734322035387,0.32874903,104550.0,104530.0,0.382662]
[1734322035592,0.24924903,104550.0,104530.0,0.4021649]
[1734322035790,0.24924903,104550.0,104530.0,0.2108339]
[1734322035991,0.24924903,104550.0,104530.0,0.19420878]
[1734322036191,0.24924903,104550.0,104530.0,0.191331]
[1734322036394,0.24924903,104550.0,104530.0,0.20795612]
[1734322036568,0.24924903,104550.0,104530.0,0.4021569]
[1734322036989,0.24924903,104550.0,104530.0,0.38553178]
[1734322037192,0.24924903,104550.0,104530.0,0.39927912]
[1734322037402,0.24924903,104550.0,104530.0,0.19733439]
[1734322037606,0.24924903,104550.0,104530.0,0.18070927]
[1734322037802,0.24924903,104550.0,104530.0,0.38866539]
[1734322038009,0.20364903,104550.0,104530.0,0.38866539]
[1734322038207,0.39504633,104550.0,104530.0,0.0195029]
[1734322038614,0.58635633,104550.0,104530.0,0.0195029]
[1734322038817,0.191314,104540.0,104530.0,0.00287778]
[1734322039021,0.191314,104540.0,104520.0,0.51214719]
[1734322039225,0.191314,104540.0,104530.0,0.00287778]
[1734322040649,0.191314,104540.0,104520.0,0.60643789]
[1734322041478,0.191314,104540.0,104520.0,0.60884109]
[1734322043373,0.39504233,104550.0,104530.0,0.0823]
[1734322043576,0.39504033,104550.0,104530.0,0.273631]
[1734322044211,0.39504033,104550.0,104530.0,0.2760342]
[1734322045566,0.39504033,104550.0,104530.0,0.27562234]
[1734322047432,0.39504033,104550.0,104530.0,0.273631]
[1734322048060,0.4516182,104550.0,104530.0,0.273631]
[1734322049165,0.6429252,104550.0,104530.0,0.0823]
[1734322049378,0.4516182,104550.0,104530.0,0.0824724]
[1734322049594,0.05657787,104540.0,104530.0,0.0824724]
[1734322049986,0.6429262,104550.0,104530.0,0.0824724]
[1734322050851,0.4516182,104550.0,104530.0,0.0824724]
[1734322052220,0.5369423,104550.0,104530.0,0.0824724]
[1734322052424,0.5369423,104550.0,104530.0,0.2738024]
[1734322052792,0.5369423,104550.0,104530.0,0.0824724]
[1734322053144,0.4516182,104550.0,104530.0,0.0824724]
[1734322053352,0.5369423,104550.0,104530.0,0.2738024]
[1734322054168,0.5369423,104550.0,104530.0,0.0824724]
[1734322054365,0.66492846,104550.0,104530.0,0.0824724]
[1734322054576,0.5369423,104550.0,104530.0,0.0824724]
[1734322054972,0.5369423,104550.0,104530.0,0.2738034]
[1734322055178,0.66492846,104550.0,104530.0,0.2738034]
[1734322055379,0.5369423,104550.0,104530.0,0.2738034]
[1734322056155,0.09775243,104550.0,104530.0,0.4651344]
[1734322056378,0.1543303,104550.0,104530.0,0.4651344]
[1734322056581,0.2603032,104550.0,104530.0,0.4651344]
[1734322057202,0.2603032,104550.0,104530.0,0.46581355]
[1734322057411,0.2603032,104550.0,104530.0,0.4664927]
[1734322057953,0.2603032,104550.0,104530.0,0.2751617]
[1734322059814,0.20372533,104550.0,104530.0,0.4664857]
[1734322060100,0.20372533,104550.0,104540.0,0.272214]
[1734322060101,8.63e-05,104550.0,104540.0,0.272214]
[1734322061737,8.63e-05,104550.0,104540.0,0.0809]
[1734322063305,0.24796017,104550.0,104540.0,0.0809]
[1734322063719,0.24796017,104550.0,104530.0,0.2307724]
[1734322063938,0.05657787,104540.0,104530.0,0.2307724]
[1734322065719,0.30446974,104540.0,104530.0,0.0001724]
[1734322065926,0.8293695,104540.0,104530.0,0.0001724]
[1734322066173,1.03787252,104540.0,104530.0,0.0001724]
[1734322066375,0.90977421,104540.0,104530.0,0.0001724]
[1734322066798,1.00394947,104540.0,104530.0,0.0001724]
[1734322066944,0.89079373,104540.0,104530.0,0.0001724]
[1734322067149,0.8329074,104540.0,104530.0,0.0001724]
[1734322068165,0.87564174,104540.0,104530.0,0.0001724]
[1734322068932,0.87564174,104540.0,104530.0,2.0001724]
[1734322069496,0.78146648,104540.0,104530.0,2.0001724]
[1734322070160,0.7545735,104540.0,104530.0,2.0001724]
[1734322070332,0.75497846,104540.0,104530.0,2.0001724]
[1734322070542,0.76731032,104540.0,104530.0,2.0001724]
[1734322070976,0.89571223,104540.0,104530.0,2.0001724]
[1734322071170,0.80944947,104540.0,104530.0,2.0001724]
[1734322071409,0.72914947,104540.0,104530.0,2.0001724]
[1734322071978,0.68314947,104540.0,104530.0,2.0001724]
[1734322072221,0.58885877,104540.0,104530.0,2.0001724]
[1734322072939,0.58894497,104540.0,104530.0,2.0001724]
[1734322075372,0.60894497,104540.0,104530.0,2.0001724]
[1734322076207,0.73753301,104540.0,104530.0,2.0001724]
[1734322076416,0.60894497,104540.0,104530.0,2.0001724]
[1734322077487,0.41763097,104540.0,104530.0,2.0001724]
[1734322077662,0.54622306,104540.0,104530.0,2.0760724]
[1734322077860,0.63195217,104540.0,104530.0,2.0760724]
[1734322078066,0.41794759,104540.0,104530.0,2.0760724]
[1734322079725,0.71821493,104540.0,104530.0,2.0760724]
[1734322080309,0.50421035,104540.0,104530.0,2.0760724]
[1734322080520,0.71821493,104540.0,104530.0,2.0760724]
[1734322080731,0.63195217,104540.0,104530.0,2.0760724]
[1734322080939,0.80326617,104540.0,104530.0,2.0760724]
[1734322081117,0.80324824,104540.0,104530.0,2.0760724]
[1734322081591,0.58924366,104540.0,104530.0,2.0760724]
[1734322082005,0.80324824,104540.0,104530.0,2.0760724]
[1734322082217,0.58924366,104540.0,104530.0,2.0760724]
[1734322082429,0.80324824,104540.0,104530.0,2.0760724]
[1734322082649,0.80379982,104540.0,104530.0,2.0001724]
[1734322083085,0.71753706,104540.0,104530.0,2.0773724]
[1734322083507,0.71753706,104540.0,104530.0,1.78509807]
[1734322083744,0.41803166,104540.0,104530.0,1.78509807]
[1734322084279,0.22671766,104540.0,104530.0,1.78509807]
[1734322084892,0.22671766,104540.0,104530.0,1.0772]
[1734322085475,0.24671766,104540.0,104530.0,1.0772]
[1734322085682,0.24671766,104540.0,104530.0,1.0773724]
[1734322085899,0.10579371,104540.0,104530.0,1.2687044]
[1734322086954,8.63e-05,104550.0,104540.0,0.1309]
[1734322087161,8.63e-05,104550.0,104540.0,0.51145346]
[1734322087410,8.63e-05,104550.0,104540.0,0.70648224]
[1734322087613,8.63e-05,104550.0,104540.0,0.79232978]
[1734322087820,8.63e-05,104550.0,104540.0,0.72003974]
[1734322088023,8.63e-05,104550.0,104540.0,0.67003974]
[1734322088226,8.63e-05,104550.0,104540.0,0.5841922]
[1734322089071,0.06301913,104590.0,104560.0,0.457654]
[1734322089278,0.0942907,104590.0,104560.0,0.457654]
[1734322089454,0.0942907,104590.0,104560.0,0.48003]
[1734322090334,0.09485489,104590.0,104560.0,0.48002]
[1734322090556,0.09485489,104590.0,104570.0,0.01866122]
[1734322090827,0.09485489,104590.0,104560.0,0.65262578]
[1734322091048,0.09485489,104590.0,104570.0,0.191246]
[1734322091251,0.09485489,104590.0,104570.0,0.382501]
[1734322091665,0.09485489,104590.0,104570.0,0.191246]
[1734322092496,0.09485489,104590.0,104570.0,0.382494]
[1734322092709,0.00056419,104590.0,104580.0,0.191241]
[1734322092920,0.00056419,104590.0,104580.0,0.29911654]
[1734322093601,0.00052419,104590.0,104580.0,0.29911654]
[1734322094426,0.00052419,104590.0,104580.0,0.270241]
[1734322096785,0.00061039,104590.0,104580.0,0.270241]
[1734322097634,0.00061039,104590.0,104570.0,0.36774755]
[1734322097805,0.00061039,104590.0,104570.0,0.46203825]
[1734322097961,0.00061039,104590.0,104580.0,0.191241]
[1734322100748,0.00061039,104590.0,104580.0,0.269141]
[1734322103796,0.16277315,104590.0,104570.0,0.37981888]
[1734322103998,0.00061039,104590.0,104580.0,0.191241]
[1734322104371,0.00061039,104590.0,104580.0,0.267941]
[1734322104522,0.00061039,104590.0,104580.0,0.417941]
[1734322108993,0.13254732,104600.0,104580.0,0.417941]
[1734322108994,0.0671577,104600.0,104580.0,0.417941]
[1734322109191,0.06732685,104600.0,104580.0,0.609167]
[1734322109555,0.06732685,104600.0,104580.0,0.800399]
[1734322110824,0.05669017,104600.0,104580.0,0.800399]
[1734322111990,0.04669017,104600.0,104580.0,0.609158]
[1734322112189,0.04669017,104600.0,104590.0,0.191222]
[1734322112391,0.04669017,104600.0,104580.0,0.609157]
[1734322112661,0.00016915,104600.0,104580.0,0.800387]
[1734322112858,0.05669017,104600.0,104580.0,0.800387]
[1734322114738,0.05669017,104600.0,104590.0,0.191222]
[1734322120870,0.05677637,104600.0,104590.0,0.191222]
[1734322121118,0.20758809,104600.0,104580.0,0.1501724]
[1734322121290,0.05652102,104590.0,104580.0,0.1501724]
[1734322128071,0.25413274,104590.0,104580.0,0.0001724]
[1734322128281,0.68012945,104590.0,104580.0,0.0001724]
[1734322128523,1.106503,104590.0,104580.0,0.0001724]
[1734322128693,0.437541,104580.0,104570.0,0.00013866]
[1734322128927,1.15778891,104580.0,104570.0,0.00013866]
[1734322129341,1.02956012,104580.0,104570.0,0.00013866]
[1734322130169,1.0889197,104580.0,104570.0,0.00013866]
[1734322131285,0.91794798,104580.0,104570.0,0.00013866]
[1734322131961,0.91824361,104580.0,104570.0,0.00013866]
[1734322132395,0.70423332,104580.0,104570.0,0.00013866]
[1734322132832,0.78837707,104580.0,104570.0,0.00013866]
[1734322133035,1.04518942,104580.0,104570.0,0.00013866]
[1734322133241,0.78837707,104580.0,104570.0,0.00013866]
[1734322133854,0.70423332,104580.0,104570.0,0.00013866]
[1734322134064,0.87484486,104580.0,104570.0,0.00013866]
[1734322135605,0.83202507,104580.0,104570.0,0.00013866]
[1734322135817,0.84377643,104580.0,104570.0,0.00013866]
[1734322136057,0.88659622,104580.0,104570.0,0.00013866]
[1734322136261,0.84373493,104580.0,104570.0,0.00013866]
[1734322137892,0.84373493,104580.0,104570.0,0.70013866]
[1734322138423,1.08627882,104580.0,104570.0,0.70013866]
[1734322140684,1.08601027,104580.0,104570.0,0.70013866]
[1734322141507,1.21425471,104580.0,104570.0,0.70013866]
[1734322142010,1.08601027,104580.0,104570.0,0.70013866]
[1734322142320,1.3004508,104580.0,104570.0,0.70013866]
[1734322143057,1.22900981,104580.0,104570.0,0.70013866]
[1734322143266,1.22887848,104580.0,104570.0,0.70013866]
[1734322143766,1.22884044,104580.0,104570.0,0.70013866]
[1734322145673,0.92966308,104580.0,104570.0,0.51690967]
[1734322147345,0.84346227,104580.0,104570.0,0.51690967]
[1734322147618,0.93763753,104580.0,104570.0,0.51690967]
[1734322148130,0.72395913,104580.0,104570.0,0.51690967]
[1734322148352,0.84340282,104580.0,104570.0,0.51690967]
[1734322150051,0.87034315,104580.0,104570.0,0.51690967]
[1734322153235,0.85859179,104580.0,104570.0,0.51690967]
[1734322155722,1.12996478,104580.0,104570.0,0.51690967]
[1734322155947,1.24310592,104580.0,104570.0,0.51708227]
[1734322156166,1.24319222,104580.0,104570.0,0.51708227]
[1734322156368,1.33737164,104580.0,104570.0,0.51708227]
[1734322157294,1.2519199,104580.0,104570.0,0.51708227]
[1734322157521,1.15774464,104580.0,104570.0,0.51708227]
[1734322158682,1.0446035,104580.0,104570.0,0.51708227]
[1734322158887,1.02957578,104580.0,104570.0,0.51708227]
[1734322159295,1.24319474,104580.0,104570.0,0.51708227]
[1734322159540,1.01333395,104580.0,104570.0,0.51708227]
[1734322159773,0.60847399,104580.0,104570.0,0.61708227]
[1734322160035,0.66504456,104580.0,104570.0,0.61708227]
[1734322160231,0.90628556,104580.0,104570.0,0.61708227]
[1734322160639,1.00046082,104580.0,104570.0,0.61708227]
[1734322160817,1.21407978,104580.0,104570.0,0.61708227]
[1734322161252,1.03444464,104580.0,104570.0,0.61708227]
[1734322162039,1.11994327,104580.0,104570.0,0.61708227]
[1734322162241,1.03474219,104580.0,104570.0,0.61708227]
[1734322164044,0.92160105,104580.0,104570.0,0.61708227]
[1734322164244,0.90649643,104580.0,104570.0,0.61708227]
[1734322165744,0.74365373,104580.0,104570.0,0.61708227]
[1734322165954,0.61525543,104580.0,104570.0,0.61708227]
[1734322166363,0.44426108,104580.0,104570.0,0.61708227]
[1734322166797,0.6158559,104580.0,104570.0,0.61708227]
[1734322167131,0.49459467,104580.0,104570.0,0.61708227]
[1734322167338,0.66589961,104580.0,104570.0,0.61708227]
[1734322167474,0.49459467,104580.0,104570.0,0.61708227]
[1734322168486,0.68583567,104580.0,104570.0,0.61708227]
[1734322169052,0.47175914,104580.0,104570.0,0.61708227]
[1734322169182,0.72865098,104580.0,104570.0,0.61708227]
[1734322169625,0.6765873,104580.0,104570.0,0.61708227]
[1734322169924,0.6629973,104580.0,104570.0,0.61708227]
[1734322170649,0.44875914,104580.0,104570.0,0.61708227]
[1734322171085,0.66306276,104580.0,104570.0,0.61708227]
[1734322171322,0.70565098,104580.0,104570.0,0.61708227]
[1734322176077,0.77865098,104580.0,104570.0,0.61708227]
[1734322176568,0.52175914,104580.0,104570.0,0.61708227]
[1734322176967,0.408618,104580.0,104570.0,0.61708227]
[1734322177170,0.77945096,104580.0,104570.0,0.61708227]
[1734322177716,0.52175914,104580.0,104570.0,0.61708227]
[1734322178315,0.77944654,104580.0,104570.0,0.61708227]
[1734322178516,0.72944654,104580.0,104570.0,0.61708227]
[1734322178730,0.67287597,104580.0,104570.0,0.61708227]
[1734322179495,0.70419189,104580.0,104570.0,0.61708227]
[1734322180319,0.67289506,104580.0,104570.0,0.61708227]
[1734322180727,0.67287935,104580.0,104570.0,0.61708227]
[1734322180905,0.6728758,104580.0,104570.0,0.61708227]
[1734322181326,0.67278098,104580.0,104570.0,0.61708227]
[1734322181523,0.70508671,104580.0,104570.0,0.61708227]
[1734322182171,0.76165728,104580.0,104570.0,0.61708227]
[1734322182836,0.85583254,104580.0,104570.0,0.61708227]
[1734322183369,0.82352229,104580.0,104570.0,0.59557264]
[1734322183936,0.72934703,104580.0,104570.0,0.59557264]
[1734322184909,0.67277646,104580.0,104570.0,0.59557264]
[1734322185109,0.61620589,104580.0,104570.0,0.59557264]
[1734322185472,0.72934703,104580.0,104570.0,0.59557264]
[1734322189430,0.61620589,104580.0,104570.0,0.59557264]
[1734322189597,0.67277646,104580.0,104570.0,0.59557264]
[1734322189835,0.61620589,104580.0,104570.0,0.59557264]
[1734322190043,0.25767307,104580.0,104570.0,0.72697264]
[1734322190264,0.25767307,104580.0,104570.0,0.91823164]
[1734322190475,0.2147235,104580.0,104570.0,0.91823164]
[1734322190676,0.51523228,104580.0,104570.0,1.06823164]
[1734322191079,0.21473786,104580.0,104570.0,1.06823164]
[1734322191480,0.08594735,104580.0,104570.0,1.06823164]
[1734322192071,0.21473786,104580.0,104570.0,1.06823164]
[1734322192276,0.08594735,104580.0,104570.0,1.06823164]
[1734322193322,0.27130843,104580.0,104570.0,0.87697264]
[1734322193739,0.4430267,104580.0,104570.0,0.87697264]
[1734322194582,0.44271786,104580.0,104570.0,0.87697264]
[1734322194791,0.44271786,104580.0,104570.0,1.06823164]
[1734322195220,0.59357913,104580.0,104570.0,0.87697264]
[1734322195422,0.66569556,104580.0,104570.0,0.87697264]
[1734322199000,0.66559749,104580.0,104570.0,0.87697264]
[1734322199218,0.60902692,104580.0,104570.0,0.87697264]
[1734322199392,0.72216806,104580.0,104570.0,0.87697264]
[1734322201990,0.60902692,104580.0,104570.0,0.87697264]
[1734322202213,0.72216806,104580.0,104570.0,0.87697264]
[1734322202444,0.66559749,104580.0,104570.0,0.87697264]
[1734322208822,0.66559749,104580.0,104570.0,0.62121431]
[1734322208823,0.36527486,104580.0,104570.0,0.62121431]
[1734322211953,0.45945012,104580.0,104570.0,0.62121431]
[1734322212662,0.36527486,104580.0,104570.0,0.62121431]
[1734322213611,0.30870429,104580.0,104570.0,0.62121431]
[1734322213842,0.36527486,104580.0,104570.0,0.62121431]
[1734322217127,0.21441359,104580.0,104570.0,0.81247331]
[1734322217578,0.08575111,104580.0,104570.0,0.81247331]
[1734322218729,0.21441359,104580.0,104570.0,0.81247331]
[1734322219159,0.27098416,104580.0,104570.0,0.81247331]
[1734322219982,0.27074877,104580.0,104570.0,0.81247331]
[1734322221224,0.44202229,104580.0,104570.0,0.81247331]
[1734322222409,0.44202229,104580.0,104570.0,0.82327534]
[1734322223274,0.46502229,104580.0,104570.0,0.82327534]
[1734322223867,0.16529363,104580.0,104570.0,0.52728136]
[1734322224430,0.16529363,104580.0,104570.0,0.52745396]
[1734322225426,0.10863676,104580.0,104570.0,0.52745396]
[1734322225629,0.16520733,104580.0,104570.0,0.52745396]
[1734322225882,0.10863676,104580.0,104570.0,0.52745396]
[1734322226287,0.16520733,104580.0,104570.0,0.52745396]
[1734322226806,0.10863676,104580.0,104570.0,0.52745396]
[1734322232388,0.2370919,104580.0,104570.0,0.52745396]
[1734322233357,0.2371866,104580.0,104570.0,0.52745396]
[1734322233755,0.40853588,104580.0,104570.0,0.52745396]
[1734322234578,0.38338223,104580.0,104570.0,0.52745396]
[1734322236474,0.72147968,104580.0,104570.0,0.28679496]
[1734322236738,0.72147968,104580.0,104570.0,0.20479496]
[1734322236739,0.44470474,104580.0,104570.0,0.20479496]
[1734322237752,0.61610616,104580.0,104570.0,0.20479496]
[1734322238179,0.61610616,104580.0,104570.0,0.39605396]
[1734322240259,0.55953559,104580.0,104570.0,0.39605396]
[1734322240694,0.50296502,104580.0,104570.0,0.39605396]
[1734322240901,0.55953559,104580.0,104570.0,0.39605396]
[1734322241077,0.55953559,104580.0,104570.0,0.38525193]
[1734322242321,0.61610616,104580.0,104570.0,0.38525193]
[1734322244713,0.44470474,104580.0,104570.0,0.38525193]
[1734322247174,0.44477721,104580.0,104570.0,0.38525193]
[1734322247382,0.55961624,104580.0,104570.0,0.38525193]
[1734322259805,0.55961624,104580.0,104570.0,0.3414316]
[1734322260753,0.55970606,104580.0,104570.0,0.3414316]
[1734322261534,0.68829816,104580.0,104570.0,0.3414316]
[1734322261765,0.63606941,104580.0,104570.0,0.0001726]
[1734322261961,0.67893147,104580.0,104570.0,0.0001726]
[1734322262121,0.56579033,104580.0,104570.0,0.0001726]
[1734322262323,0.67893147,104580.0,104570.0,0.0001726]
[1734322262548,0.48769047,104580.0,104570.0,0.0001726]
[1734322263396,0.37454933,104580.0,104570.0,0.0001726]
[1734322263639,0.23051814,104580.0,104570.0,0.0001726]
[1734322264058,0.80406617,104580.0,104570.0,0.0001726]
[1734322264235,0.48766161,104580.0,104570.0,0.0001726]
[1734322264440,0.75537979,104580.0,104570.0,0.0001726]
[1734322266452,0.37452047,104580.0,104570.0,0.1914316]
[1734322266661,0.37452047,104580.0,104570.0,0.2744316]
[1734322266662,0.444794,104580.0,104570.0,0.2744316]
[1734322267515,0.61621858,104580.0,104570.0,0.2744316]
[1734322267725,0.33165286,104580.0,104570.0,0.2744316]
[1734322267930,0.38822343,104580.0,104570.0,0.2744316]
[1734322268560,0.444794,104580.0,104570.0,0.3243316]
[1734322268766,0.38822343,104580.0,104570.0,0.2744316]
[1734322270444,0.55965284,104580.0,104570.0,0.2744316]
[1734322270852,0.55965284,104580.0,104570.0,0.00388927]
[1734322270853,0.47394833,104580.0,104570.0,0.00388927]
[1734322271055,0.47394833,104580.0,104570.0,0.19514827]
[1734322271492,0.5305189,104580.0,104560.0,0.623696]
[1734322271692,0.14228588,104570.0,104560.0,0.582428]
[1734322272194,0.08571531,104570.0,104560.0,0.582428]
[1734322272629,0.21428666,104570.0,104560.0,0.582428]
[1734322272778,0.21428666,104570.0,104560.0,0.56113122]
[1734322272779,0.08571531,104570.0,104560.0,0.56113122]
[1734322273807,0.08571531,104570.0,104560.0,0.64053122]
[1734322273986,0.0197153,104570.0,104560.0,0.64053122]
[1734322276714,0.47394833,104580.0,104560.0,0.64053122]
[1734322276715,0.24594835,104580.0,104570.0,0.191259]
[1734322276927,0.15165765,104580.0,104570.0,0.420659]
[1734322277132,8.63e-05,104580.0,104570.0,0.420659]
[1734322282332,8.63e-05,104580.0,104570.0,0.4208316]
[1734322283835,0.05665687,104580.0,104570.0,0.4208316]
[1734322284003,0.14234812,104580.0,104570.0,0.4208316]
[1734322285924,0.14234812,104580.0,104570.0,0.43173808]
[1734322286784,0.08577755,104580.0,104570.0,0.43173808]
[1734322286989,0.14234812,104580.0,104570.0,0.35233808]
[1734322292293,0.08577755,104580.0,104570.0,0.35233808]
[1734322294824,0.10877755,104580.0,104570.0,0.35233808]
[1734322297012,0.10873258,104580.0,104570.0,0.35233808]
[1734322298939,0.0230863,104580.0,104570.0,0.35233808]
[1734322299431,0.10873258,104580.0,104570.0,0.35233808]
[1734322301206,0.10873258,104580.0,104570.0,0.3414316]
[1734322301429,0.67868068,104580.0,104570.0,0.1501726]
[1734322301645,0.65640427,104580.0,104570.0,0.1501726]
[1734322301868,0.82769683,104580.0,104570.0,0.1501726]
[1734322302302,0.63645583,104580.0,104570.0,0.1501726]
[1734322304477,0.6930264,104580.0,104570.0,0.1501726]
[1734322305094,0.63645583,104580.0,104570.0,0.1501726]
[1734322305514,0.6930264,104580.0,104570.0,0.1501726]
[1734322306171,0.69293412,104580.0,104570.0,0.1501726]
[1734322306624,0.70823165,104580.0,104570.0,0.1501726]
[1734322306839,0.76480222,104580.0,104570.0,0.1501726]
[1734322307269,0.63636302,104580.0,104570.0,0.1501726]
[1734322308383,0.57979245,104580.0,104570.0,0.3414316]
[1734322308595,0.63636302,104580.0,104570.0,0.3414316]
[1734322308822,0.46511147,104580.0,104570.0,0.3414316]
[1734322309276,0.63636302,104580.0,104570.0,0.3414316]
[1734322309692,0.46324678,104580.0,104570.0,0.3414316]
[1734322311592,0.63449833,104580.0,104570.0,0.3414316]
[1734322311770,0.38614678,104580.0,104570.0,0.3414316]
[1734322312441,0.55739833,104580.0,104570.0,0.3414316]
[1734322313071,0.38614678,104580.0,104570.0,0.3414316]
[1734322315773,0.38623308,104580.0,104570.0,0.3414316]
[1734322316207,0.17216918,104580.0,104570.0,0.3414316]
[1734322316823,0.55742736,104580.0,104570.0,0.3414316]
[1734322317454,0.50085462,104580.0,104570.0,0.3414316]
[1734322317660,0.55742519,104580.0,104570.0,0.3414316]
[1734322319316,0.47181443,104580.0,104570.0,0.3414316]
[1734322319722,0.55741811,104580.0,104570.0,0.1501726]
[1734322319931,0.55741579,104580.0,104570.0,0.1501726]
[1734322320144,0.38618993,104580.0,104560.0,0.47065408]
[1734322320346,0.38618993,104580.0,104560.0,0.66191908]
[1734322321178,0.38618993,104580.0,104570.0,0.191259]
[1734322322037,0.32961936,104580.0,104570.0,0.191259]
[1734322322256,0.10690927,104580.0,104570.0,0.271459]
[1734322323928,0.16347984,104580.0,104570.0,0.271459]
[1734322324557,0.3670234,104580.0,104570.0,0.191259]
[1734322324977,0.16347984,104580.0,104560.0,0.49383432]
[1734322325184,0.16347984,104580.0,104570.0,0.191259]
[1734322325388,0.29189923,104580.0,104570.0,0.191259]
[1734322325800,0.16347984,104580.0,104570.0,0.271559]
[1734322326006,0.16347984,104580.0,104570.0,0.421559]
[1734322327029,0.16347984,104580.0,104570.0,0.4217316]
[1734322328639,0.29189923,104580.0,104570.0,0.4217316]
[1734322329905,0.16347984,104580.0,104570.0,0.4217316]
[1734322330113,0.29189923,104580.0,104570.0,0.4217316]
[1734322330554,0.23532866,104580.0,104570.0,0.4217316]
[1734322330768,0.29189923,104580.0,104570.0,0.4217316]
[1734322330984,0.23532866,104580.0,104570.0,0.4217316]
[1734322332044,0.10690927,104580.0,104570.0,0.4217316]
[1734322334977,0.40655452,104580.0,104570.0,0.4217316]
[1734322335806,0.23532866,104580.0,104570.0,0.4217316]
[1734322337015,0.40655452,104580.0,104570.0,0.4217316]
[1734322338593,0.53498549,104580.0,104570.0,0.4217316]
[1734322338802,0.59155606,104580.0,104570.0,0.4217316]
[1734322339017,0.46318325,104580.0,104570.0,0.4217316]
[1734322339219,0.46318398,104580.0,104570.0,0.4217316]
[1734322340929,0.46318398,104580.0,104570.0,0.4233386]
[1734322341133,0.46312951,104580.0,104570.0,0.4233386]
[1734322345603,0.46321511,104580.0,104570.0,0.4233386]
[1734322347314,0.40664454,104580.0,104570.0,0.4233386]
[1734322349943,0.40679375,104580.0,104570.0,0.4233386]
[1734322350568,0.40679358,104580.0,104570.0,0.4233386]
[1734322351049,0.53527548,104580.0,104570.0,0.4233386]
[1734322351508,0.40680326,104580.0,104570.0,0.4233386]
[1734322352572,0.46337383,104580.0,104570.0,0.4233386]
[1734322352774,0.46338234,104580.0,104570.0,0.3430386]
[1734322352970,0.59184605,104580.0,104570.0,0.3430386]
[1734322353409,0.46338214,104580.0,104570.0,0.3430386]
[1734322354302,0.59197007,104580.0,104570.0,0.3430386]
[1734322356382,0.46347706,104580.0,104570.0,0.3430386]
[1734322356590,0.59197007,104580.0,104570.0,0.3430386]
[1734322357068,0.5353995,104580.0,104570.0,0.3430386]
[1734322357298,0.40690849,104580.0,104570.0,0.4215386]
[1734322357519,0.23555796,104580.0,104570.0,0.4215386]
[1734322358879,0.23559031,104580.0,104570.0,0.4215386]
[1734322359656,0.10704487,104580.0,104570.0,0.4215386]
[1734322360701,0.10882326,104580.0,104570.0,0.4215386]
[1734322361131,0.0231263,104580.0,104570.0,0.4690386]
[1734322363365,0.10882326,104580.0,104570.0,0.4690386]
[1734322363568,0.16539383,104580.0,104570.0,0.3190386]
[1734322363811,0.29393927,104580.0,104570.0,0.3190386]
[1734322364217,0.09939382,104580.0,104570.0,0.3190386]
[1734322364954,0.08569696,104580.0,104570.0,0.3190386]
[1734322365070,0.54219647,104590.0,104570.0,0.3190386]
[1734322365284,0.37080254,104590.0,104580.0,0.341241]
[1734322365478,0.54219647,104590.0,104580.0,0.341241]
[1734322365940,0.37080254,104590.0,104580.0,0.341241]
[1734322366294,0.39380254,104590.0,104580.0,0.341241]
[1734322366739,0.47949951,104590.0,104580.0,0.341241]
[1734322366980,0.39374931,104590.0,104580.0,0.341241]
[1734322368320,0.23287874,104590.0,104580.0,0.420641]
[1734322368617,0.1043333,104590.0,104580.0,0.420641]
[1734322369683,0.1273333,104590.0,104580.0,0.420641]
[1734322371682,0.18390387,104590.0,104580.0,0.35451707]
[1734322372105,0.1274196,104590.0,104580.0,0.35451707]
[1734322372755,0.12739961,104590.0,104580.0,0.35451707]
[1734322375341,0.25583522,104590.0,104580.0,0.35451707]
[1734322375541,0.12739961,104590.0,104580.0,0.35451707]
[1734322376889,0.12739961,104590.0,104580.0,0.43721707]
[1734322377531,0.04177587,104590.0,104580.0,0.43721707]
[1734322377710,0.12738498,104590.0,104580.0,0.43721707]
[1734322377946,0.04177587,104590.0,104580.0,0.43721707]
[1734322379053,0.12738498,104590.0,104580.0,0.43721707]
[1734322379458,0.04177587,104590.0,104580.0,0.43721707]
[1734322381150,0.12738498,104590.0,104580.0,0.43721707]
[1734322381566,0.04177587,104590.0,104580.0,0.43721707]
[1734322384989,0.12737629,104590.0,104580.0,0.43721707]
[1734322385412,0.04177587,104590.0,104580.0,0.43721707]
[1734322389189,0.09834644,104590.0,104580.0,0.35451707]
[1734322389397,0.26444686,104590.0,104580.0,0.35451707]
[1734322390046,0.26444346,104590.0,104580.0,0.15]
[1734322390245,0.67835169,104590.0,104580.0,0.15]
[1734322390457,0.0805,104580.0,104570.0,0.0017796]
[1734322390666,0.50191732,104580.0,104570.0,0.0017796]
[1734322391077,0.69315832,104580.0,104570.0,0.0017796]
[1734322391744,0.69315832,104580.0,104570.0,0.1517796]
[1734322392166,0.71615832,104580.0,104570.0,0.1517796]
[1734322392379,0.023,104570.0,104560.0,0.0001726]
[1734322392612,0.51432682,104570.0,104560.0,0.0001726]
[1734322394539,0.51418984,104570.0,104560.0,0.0001726]
[1734322395437,0.51418984,104570.0,104560.0,0.1914496]
[1734322395850,0.3858927,104570.0,104560.0,0.1914496]
[1734322396485,0.10853143,104570.0,104560.0,0.1914496]
[1734322397362,0.023,104570.0,104560.0,0.1914496]
[1734322397569,0.023,104570.0,104560.0,0.3414496]
[1734322398008,0.10853143,104570.0,104560.0,0.3414496]
[1734322398540,0.023,104570.0,104560.0,0.3414496]
[1734322402171,0.023,104570.0,104550.0,0.47206525]
[1734322402386,0.023,104570.0,104560.0,0.191277]
[1734322405696,0.023,104570.0,104560.0,0.15]
[1734322406133,0.023,104570.0,104560.0,0.341277]
[1734322407135,0.023,104570.0,104560.0,0.3414496]
[1734322407456,0.0230863,104570.0,104560.0,0.3414496]
[1734322407629,0.0230863,104570.0,104560.0,0.4230496]
[1734322409016,0.023,104580.0,104570.0,0.191248]
[1734322409213,0.023,104580.0,104570.0,0.532497]
[1734322410648,0.023,104580.0,104570.0,0.614097]
[1734322410854,0.3618759,104600.0,104570.0,0.422848]
[1734322411137,0.07957057,104590.0,104580.0,0.382465]
[1734322411338,0.023,104590.0,104580.0,0.382465]
[1734322411753,0.04238813,104590.0,104580.0,0.382465]
[1734322415201,0.0989587,104590.0,104580.0,0.382465]
[1734322415408,0.04238813,104590.0,104580.0,0.382465]
[1734322415620,0.04238813,104590.0,104580.0,0.532465]
[1734322417214,0.023,104590.0,104580.0,0.532465]
[1734322417416,0.023,104590.0,104580.0,0.613265]
[1734322418218,0.023,104590.0,104580.0,0.422029]
[1734322419611,0.023,104590.0,104580.0,0.2308]
[1734322419815,0.07957057,104590.0,104580.0,0.15]
[1734322420019,0.15875687,104590.0,104580.0,0.15]
[1734322421549,0.67200569,104590.0,104570.0,0.0001726]
[1734322421761,0.22161951,104580.0,104570.0,0.0001726]
[1734322421981,0.16504894,104580.0,104570.0,0.0001726]
[1734322422391,0.16501764,104580.0,104570.0,0.0001726]
[1734322423018,0.023,104580.0,104570.0,0.0001726]
[1734322424044,0.59188724,104590.0,104570.0,0.0001726]